fUST/lending_fUST_20240731
["ID","MTS","AMOUNT","RATE_DAILY","PERIOD"]
[333716207,1722402644034,-390.522717,0.00013698,2]
[333716208,1722402644046,-390.522717,0.00013698,2]
[333716209,1722402644057,-390.522717,0.00013698,2]
[333716210,1722402644066,-390.522717,0.00013698,2]
[333716211,1722402644075,-390.522717,0.00013698,2]
[333716212,1722402644084,-390.522717,0.00013698,2]
[333716213,1722402644095,-390.522717,0.00013698,2]
[333716214,1722402644105,-500.0,0.00013698,2]
[333716215,1722402644116,-390.522717,0.00013698,2]
[333716216,1722402644128,-1284.12,0.00013698,2]
[333716217,1722402644138,-390.522717,0.00013698,2]
[333716218,1722402644148,-390.522717,0.00013698,2]
[333716219,1722402644158,-1586.2,0.00013698,2]
[333716220,1722402644168,-390.522719,0.00013698,2]
[333716221,1722402644178,-1641.01,0.00013698,2]
[333716222,1722402644187,-459.603804,0.00013698,2]
[333716223,1722402644197,-886.99,0.00013698,2]
[333716224,1722402644207,-459.603804,0.00013698,2]
[333716225,1722402644217,-500.0,0.00013698,2]
[333716226,1722402644228,-459.603804,0.00013698,2]
[333716227,1722402644238,-459.603804,0.00013698,2]
[333716228,1722402644247,-459.603804,0.00013698,2]
[333716229,1722402644257,-459.603804,0.00013698,2]
[333716230,1722402644267,-459.603804,0.00013698,2]
[333716231,1722402644276,-500.0,0.00013698,2]
[333716232,1722402644286,-459.603804,0.00013698,2]
[333716233,1722402644296,-459.603804,0.00013698,2]
[333716234,1722402644306,-459.603804,0.00013698,2]
[333716235,1722402644316,-459.603804,0.00013698,2]
[333716236,1722402644326,-459.603804,0.00013698,2]
[333716237,1722402644336,-459.603804,0.00013698,2]
[333716238,1722402644346,-459.603804,0.00013698,2]
[333716239,1722402644357,-500.0,0.00013698,2]
[333716240,1722402644367,-459.603804,0.00013698,2]
[333716241,1722402644376,-459.603804,0.00013698,2]
[333716242,1722402644387,-189.856692,0.00013698,2]
[333716243,1722402644398,-189.856692,0.00013698,2]
[333716244,1722402644407,-189.856692,0.00013698,2]
[333716245,1722402644417,-189.856692,0.00013698,2]
[333716246,1722402644427,-691.71,0.00013698,2]
[333716247,1722402644436,-189.856692,0.00013698,2]
[333716248,1722402644446,-189.856692,0.00013698,2]
[333716249,1722402644456,-189.856692,0.00013698,2]
[333716250,1722402644466,-189.856692,0.00013698,2]
[333716251,1722402644477,-563.47,0.00013698,2]
[333716252,1722402644487,-816.8,0.00013698,2]
[333716253,1722402644498,-189.856692,0.00013698,2]
[333716254,1722402644508,-189.856692,0.00013698,2]
[333716255,1722402644518,-522.68075047,0.00013698,2]
[333716256,1722402644528,-189.856692,0.00013698,2]
[333716257,1722402644537,-189.856692,0.00013698,2]
[333716258,1722402644546,-189.856692,0.00013698,2]
[333716259,1722402644555,-189.856692,0.00013698,2]
[333716260,1722402644565,-151.0,0.00013699,2]
[333716261,1722402644575,-151.0,0.00013699,2]
[333716262,1722402644586,-151.0,0.00013699,2]
[333716263,1722402644596,-574.3490948,0.00013699,2]
[333716264,1722402644605,-254.349567,0.00013699,2]
[333716265,1722402644614,-3000.0,0.00013699,2]
[333716266,1722402644623,-293.754072,0.00013699,2]
[333716267,1722402644633,-293.754072,0.00013699,2]
[333716268,1722402644642,-151.0,0.00013699,2]
[333716269,1722402644652,-151.0,0.00013699,2]
[333716270,1722402644662,-151.0,0.00013699,2]
[333716271,1722402644671,-151.0,0.00013699,2]
[333716272,1722402644680,-151.0,0.00013699,2]
[333716273,1722402644690,-152.552696,0.00013699,2]
[333716274,1722402644700,-500.0,0.00013699,2]
[333716275,1722402644709,-500.0,0.00013699,2]
[333716276,1722402644718,-500.0,0.00013699,2]
[333716277,1722402644730,-500.0,0.00013699,2]
[333716278,1722402644739,-619.59676449,0.00013699,2]
[333716279,1722402644750,-500.0,0.00013699,2]
[333716280,1722402644761,-500.0,0.00013699,2]
[333716281,1722402644770,-500.0,0.00013699,2]
[333716282,1722402644780,-500.0,0.00013699,2]
[333716283,1722402644789,-500.0,0.00013699,2]
[333716284,1722402644798,-500.0,0.00013699,2]
[333716285,1722402644807,-500.0,0.00013699,2]
[333716286,1722402644816,-500.0,0.00013699,2]
[333716287,1722402644825,-500.0,0.00013699,2]
[333716288,1722402644834,-151.0,0.00013699,2]
[333716289,1722402644844,-285.97051,0.00013699,2]
[333716290,1722402644853,-285.97051,0.00013699,2]
[333716291,1722402644863,-206.8555981,0.000137,2]
[333716292,1722402644872,-306.1553041,0.000137,2]
[333716293,1722402644882,-2463.24362892,0.00013846,2]
[333716294,1722402644891,-153.0,0.00013878,2]
[333716295,1722402644901,-306.0,0.00013878,2]
[333716296,1722402644911,-294.1445528,0.00013878,2]
[333716297,1722402644920,-153.0,0.00013878,2]
[333716298,1722402644929,-153.0,0.00013878,2]
[333716299,1722402644939,-206.8816348,0.00013878,2]
[333716300,1722402644948,-153.0,0.00013878,2]
[333716301,1722402644958,-153.0,0.00013878,2]
[333716302,1722402644967,-206.8555981,0.00013878,2]
[333716303,1722402644978,-153.0,0.00013878,2]
[333716304,1722402644987,-294.1142903,0.00013878,2]
[333716305,1722402644998,-27820.7969449,0.00013962,2]
[333716306,1722402645007,-293.754072,0.00013971,2]
[333716307,1722402645016,-293.754072,0.00013971,2]
[333716308,1722402645025,-151.0,0.00013971,2]
[333716309,1722402645035,-240.221402,0.00013971,2]
[333716310,1722402645044,-151.0,0.00013971,2]
[333716311,1722402645058,-151.0,0.00013971,2]
[333716312,1722402645068,-151.0,0.00013971,2]
[333716313,1722402645078,-285.97051,0.00013971,2]
[333716314,1722402645088,-285.97051,0.00013971,2]
[333716315,1722402645099,-585.90978701,0.00013971,2]
[333716316,1722402645108,-286.69849028,0.00013971,2]
[333716317,1722402645118,-500.0,0.00013971,2]
[333716318,1722402645130,-335.61795776,0.00013971,2]
[333716319,1722402645139,-500.0,0.00013971,2]
[333716320,1722402645149,-500.0,0.00013971,2]
[333716321,1722402645158,-500.0,0.00013971,2]
[333716322,1722402645167,-500.0,0.00013971,2]
[333716323,1722402645177,-500.0,0.00013971,2]
[333716324,1722402645186,-500.0,0.00013971,2]
[333716325,1722402645195,-554.2543164,0.00013971,2]
[333716326,1722402645205,-500.0,0.00013971,2]
[333716327,1722402645214,-500.0,0.00013971,2]
[333716328,1722402645225,-500.0,0.00013971,2]
[333716329,1722402645234,-500.0,0.00013971,2]
[333716330,1722402645244,-500.0,0.00013971,2]
[333716331,1722402645253,-500.0,0.00013971,2]
[333716332,1722402645262,-532.30441404,0.00013971,2]
[333716333,1722402645271,-500.0,0.00013971,2]
[333716334,1722402645280,-151.0,0.00013972,2]
[333716335,1722402645290,-151.0,0.00013972,2]
[333716336,1722402645299,-151.0,0.00013972,2]
[333716337,1722402645308,-1419.81,0.00013972,2]
[333716338,1722402645317,-1198.12,0.00013972,2]
[333716339,1722402645326,-2162.74,0.00013972,2]
[333716340,1722402645335,-500.0,0.00013972,2]
[333716341,1722402645344,-2188.84,0.00013972,2]
[333716342,1722402645353,-1932.76,0.00013972,2]
[333716343,1722402645363,-293.754072,0.00013972,2]
[333716344,1722402645372,-293.754072,0.00013972,2]
[333716345,1722402645381,-293.754072,0.00013972,2]
[333716346,1722402645390,-293.754072,0.00013972,2]
[333716347,1722402645399,-293.754072,0.00013972,2]
[333716348,1722402645408,-293.754072,0.00013972,2]
[333716349,1722402645418,-500.0,0.00013972,2]
[333716350,1722402645427,-3476.1,0.00013972,2]
[333716351,1722402645437,-151.0,0.00013972,2]
[333716352,1722402645447,-500.0,0.00013972,2]
[333716353,1722402645457,-151.0,0.00013972,2]
[333716354,1722402645466,-151.0,0.00013972,2]
[333716355,1722402645478,-1813.51,0.00013972,2]
[333716356,1722402645488,-14162.0,0.00013972,2]
[333716357,1722402645497,-151.0,0.00013972,2]
[333716358,1722402645507,-500.0,0.00013972,2]
[333716359,1722402645516,-656.79,0.00013972,2]
[333716361,1722402645525,-768.23,0.00013972,2]
[333716362,1722402645535,-233.77524,0.00013972,2]
[333716364,1722402645544,-4918.41,0.00013972,2]
[333716366,1722402645554,-500.0,0.00013972,2]
[333716368,1722402645563,-500.0,0.00013972,2]
[333716370,1722402645572,-2058.29,0.00013972,2]
[333716372,1722402645581,-168.561783,0.00013972,2]
[333716374,1722402645592,-1319.13,0.00013972,2]
[333716376,1722402645603,-11090.49,0.00013972,2]
[333716377,1722402645612,-548.74243739,0.00013972,2]
[333716379,1722402645622,-1471.09,0.00013972,2]
[333716381,1722402645632,-285.97051,0.00013972,2]
[333716382,1722402645641,-285.97051,0.00013972,2]
[333716383,1722402645651,-285.97051,0.00013972,2]
[333716384,1722402645662,-285.970516,0.00013972,2]
[333716385,1722402645674,-823.28,0.00013972,2]
[333716386,1722402645684,-794.8,0.00013972,2]
[333716387,1722402645695,-500.0,0.00013972,2]
[333716389,1722402645704,-850.8,0.00013972,2]
[333716391,1722402645713,-500.0,0.00013972,2]
[333716393,1722402645723,-1186.89,0.00013972,2]
[333716395,1722402645732,-1576.37,0.00013972,2]
[333716397,1722402645741,-7346.06,0.00013972,2]
[333716399,1722402645751,-500.0,0.00013972,2]
[333716401,1722402645761,-831.9,0.00013972,2]
[333716403,1722402645770,-1293.57,0.00013972,2]
[333716405,1722402645779,-505.90471443,0.00013972,2]
[333716407,1722402645789,-4515.61,0.00013972,2]
[333716409,1722402645799,-500.0,0.00013972,2]
[333716411,1722402645809,-1284.12,0.00013972,2]
[333716413,1722402645819,-1586.2,0.00013972,2]
[333716415,1722402645829,-1641.01,0.00013972,2]
[333716417,1722402645838,-886.99,0.00013972,2]
[333716419,1722402645848,-500.0,0.00013972,2]
[333716422,1722402645988,-500.0,0.00013972,2]
[333716423,1722402646001,-691.71,0.00013972,2]
[333716424,1722402646013,-563.47,0.00013972,2]
[333716425,1722402646023,-816.8,0.00013972,2]
[333716426,1722402646034,-206.6652184,0.00013978,2]
[333716428,1722402646044,-326.228744,0.00013978,2]
[333716429,1722402646059,-296.7773963,0.00013978,2]
[333716431,1722402646068,-153.4495391,0.00013978,2]
[333716432,1722402646078,-153.0,0.00013978,2]
[333716433,1722402646089,-287.6522504,0.00013978,2]
[333716434,1722402646102,-206.7964656,0.00013978,2]
[333716435,1722402646112,-153.8201104,0.00013978,2]
[333716436,1722402646121,-2463.24362892,0.00013998,2]
[333716437,1722402646133,-2000.0,0.00013998,2]
[333716438,1722402646144,-4962.87626106,0.00014014,2]
[333716439,1722402646156,-150.0,0.00014043,2]
[333716440,1722402646167,-151.0,0.00014048,2]
[333716441,1722402646179,-151.0,0.00014048,2]
[333716442,1722402646191,-151.0,0.00014048,2]
[333716443,1722402646204,-293.754072,0.00014048,2]
[333716444,1722402646213,-293.754072,0.00014048,2]
[333716445,1722402646225,-151.0,0.00014048,2]
[333716446,1722402646236,-352.9349258,0.00014065,2]
[333716447,1722402646247,-27820.7969449,0.00014087,2]
[333716448,1722402646258,-275.249257,0.00014088,2]
[333716449,1722402646268,-204.572387,0.00014088,2]
[333716450,1722402646278,-151.0,0.00014088,2]
[333716451,1722402646288,-151.0,0.00014088,2]
[333716452,1722402646301,-152.111013,0.00014088,2]
[333716453,1722402646310,-281.893627,0.00014088,2]
[333716454,1722402646321,-293.754072,0.00014088,2]
[333716455,1722402646333,-293.754066,0.00014088,2]
[333716456,1722402646343,-151.0,0.00014088,2]
[333716457,1722402646353,-7869.38156835,0.00014088,2]
[333716458,1722402646384,-189.856692,0.00013698,2]
[333716459,1722402646394,-16230.98964708,0.00014088,2]
[333716460,1722402647720,-189.856697,0.00013698,2]
[333716461,1722402647732,-303.16457071,0.00013698,2]
[333716492,1722403061236,209.11051331,9.999e-05,2]
[333716504,1722403200914,154.91882781,9.999e-05,2]
[333716505,1722403214779,154.93764996,9.999e-05,2]
[333716506,1722403215348,154.93940578,9.999e-05,2]
[333716507,1722403216954,193.02875311,9.999e-05,2]
[333716510,1722403243828,183.31322817,9.999e-05,2]
[333716521,1722403695808,302.62444921,9.999e-05,2]
[333716524,1722403731575,154.69833824,9.999e-05,2]
[333716536,1722403761157,-446.47,0.00010959,2]
[333716537,1722403761183,-372.05,0.00010959,2]
[333716538,1722403761205,-310.05,0.00010959,2]
[333716539,1722403761226,-258.37,0.00010959,2]
[333716540,1722403761247,-215.31,0.00010959,2]
[333716541,1722403761269,-300.0,0.00011562,2]
[333716542,1722403761290,-287.0,0.00011562,2]
[333716543,1722403761314,-24900.0,0.00011563,2]
[333716544,1722403761340,-161.373556,0.00011662,2]
[333716545,1722403761364,-161.373556,0.00011705,2]
[333716546,1722403761388,-161.373556,0.00011749,2]
[333716547,1722403761415,-161.373556,0.00011792,2]
[333716548,1722403761439,-161.373556,0.00011835,2]
[333716549,1722403761464,-161.373556,0.00011879,2]
[333716550,1722403761490,-161.373556,0.00011922,2]
[333716551,1722403761513,-161.373556,0.00011966,2]
[333716552,1722403761535,-161.373556,0.00012009,2]
[333716553,1722403761557,-161.373556,0.00012052,2]
[333716554,1722403761581,-161.373556,0.00012096,2]
[333716555,1722403761605,-161.373556,0.00012139,2]
[333716556,1722403761628,-161.373556,0.00012183,2]
[333716557,1722403761653,-161.373556,0.00012226,2]
[333716558,1722403761674,-161.373556,0.00012269,2]
[333716559,1722403761694,-467.22777048,0.000125,2]
[333716560,1722403761715,-420.0,0.00012718,2]
[333716561,1722403761736,-294.1142903,0.00012878,2]
[333716562,1722403761759,-1205.28738691,0.0001289,2]
[333716563,1722403761779,-1963.7486612,0.000129,2]
[333716564,1722403762138,179.42,0.00010959,2]
[333716565,1722403762642,86.45484763,0.00012986,2]
[333716573,1722403829589,178.30166176,9.999e-05,2]
[333716698,1722403838276,-897.15,0.00010959,2]
[333716700,1722403838287,-72.00324137,0.00012986,2]
[333716702,1722403838297,-206.6190681,0.00013178,2]
[333716704,1722403838307,-153.0,0.00013278,2]
[333716706,1722403838317,-294.1142903,0.00013278,2]
[333716708,1722403838326,-1707.2846211,0.00013578,2]
[333716710,1722403838338,-1707.2846211,0.00013583,2]
[333716713,1722403838348,-300.0,0.00013587,2]
[333716715,1722403838358,-1707.2846211,0.00013588,2]
[333716717,1722403838369,-26808.7409226,0.00013588,2]
[333716719,1722403838380,-2000.0,0.00013588,2]
[333716721,1722403838391,-1707.2846211,0.00013592,2]
[333716723,1722403838401,-1707.2846211,0.00013597,2]
[333716725,1722403838410,-860.50733679,0.00013598,2]
[333716727,1722403838421,-88888.0,0.00013598,2]
[333716730,1722403838434,-2410.7481714,0.00013655,2]
[333716731,1722403838445,-18338.89154029,0.00013687,2]
[333716863,1722403840328,-8469.84938231,0.00013687,2]
[333716864,1722403840338,-151.0,0.00013687,2]
[333716865,1722403840347,-3628.0170026,0.00013688,2]
[333716866,1722403840356,-9018.63977072,0.00013688,2]
[333716895,1722403846166,-2975.47090742,0.00013688,2]
[333716896,1722403846230,-736.87080341,0.00013688,2]
[333716916,1722404006900,209.11051331,9.999e-05,2]
[333716917,1722404035546,1499.999999,0.00023261,60]
[333716919,1722404065200,218.8002753,9.999e-05,2]
[333716920,1722404094222,1052.0220502,9.999e-05,2]
[333716928,1722404587107,360.0,9.999e-05,2]
[333716932,1722404688757,534.54776059,9.999e-05,2]
[333716933,1722404690605,240.0,9.999e-05,2]
[333716934,1722404691262,206.18109017,9.999e-05,2]
[333716935,1722404705617,240.0,9.999e-05,2]
[333716936,1722404710910,289.73719131,9.999e-05,2]
[333716937,1722404725723,155.19292016,9.999e-05,2]
[333716938,1722404727345,156.71556746,9.999e-05,2]
[333716939,1722404727450,783.06362585,9.999e-05,2]
[333716940,1722404727817,570.90263825,9.999e-05,2]
[333716941,1722404736517,155.06226822,9.999e-05,2]
[333716942,1722404738855,155.11175959,0.0001,2]
[333716943,1722404740855,1053.36912253,9.999e-05,2]
[333716944,1722404741371,167.55964332,9.999e-05,2]
[333716945,1722404765687,160.80467939,9.999e-05,2]
[333716946,1722404765976,9860.79410587,9.999e-05,2]
[333716947,1722404779344,155.00911629,9.999e-05,2]
[333716948,1722404793621,288.41016437,0.0001,2]
[333716949,1722404796293,481.44088739,9.999e-05,2]
[333716950,1722404814866,154.69833824,9.999e-05,2]
[333716951,1722404816942,154.88054131,9.999e-05,2]
[333716952,1722404820082,376.40951695,9.999e-05,2]
[333716953,1722404822081,234.70275381,9.999e-05,2]
[333716954,1722404823101,190.90871018,9.999e-05,2]
[333717013,1722404862589,155.26848506,9.999e-05,2]
[333717014,1722404879090,179.71367307,9.999e-05,2]
[333717015,1722404880439,209.11051331,9.999e-05,2]
[333717016,1722404890492,261.93787515,9.999e-05,2]
[333717017,1722404893680,2510.85989188,9.999e-05,2]
[333717018,1722404894260,579.33558754,9.999e-05,2]
[333717019,1722404901581,154.69833824,9.999e-05,2]
[333717020,1722404926988,16276.9865334,9.999e-05,2]
[333717026,1722404946241,-300.0,0.00012119,2]
[333717027,1722404946264,-174.37281606,0.0001212,2]
[333717028,1722404946287,-197.10945872,0.0001212,2]
[333717029,1722404946309,-210.59123965,0.0001212,2]
[333717030,1722404946332,-160.46985854,0.0001212,2]
[333717031,1722404946353,-209.03992991,0.0001212,2]
[333717032,1722404946375,-155.08780149,0.0001212,2]
[333717033,1722404946395,-160.02872969,0.0001212,2]
[333717034,1722404946417,-155.66299177,0.0001212,2]
[333717035,1722404946438,-268.38928135,0.0001212,2]
[333717036,1722404946459,-250.53895787,0.0001212,2]
[333717037,1722404946481,-157.63429705,0.0001212,2]
[333717038,1722404946502,-155.22571178,0.0001212,2]
[333717039,1722404946525,-545.32051197,0.0001212,2]
[333717040,1722404946546,-154.71377951,0.0001212,2]
[333717041,1722404946568,-154.90980731,0.0001212,2]
[333717042,1722404946591,-154.91450065,0.0001212,2]
[333717043,1722404946612,-189.00991925,0.0001212,2]
[333717044,1722404946637,-24900.0,0.00012125,2]
[333717045,1722404946657,-158.458089,0.00012986,2]
[333717046,1722404950092,106.86452288,0.0001212,2]
[333717049,1722404973106,5574.0,0.00027,120]
[333717055,1722404989996,211.95363918,9.999e-05,2]
[333717056,1722405006409,154.94400229,9.999e-05,2]
[333717067,1722405014652,154.69833824,9.999e-05,2]
[333717119,1722405039064,-142.82384171,0.0001212,2]
[333717120,1722405039076,-675.93124583,0.00013101,2]
[333717121,1722405039169,-651.30631796,0.00013101,2]
[333717122,1722405039181,-391.04251476,0.00013101,2]
[333717123,1722405039192,-344.0811251,0.00013311,2]
[333717124,1722405039202,-1052.89412198,0.00013498,2]
[333717125,1722405039214,-300.0,0.00013522,2]
[333717126,1722405039223,-1052.89412195,0.00013523,2]
[333717127,1722405039233,-1052.89412195,0.00013548,2]
[333717128,1722405039243,-1052.89412195,0.00013573,2]
[333717129,1722405039252,-2451.1,0.00013587,2]
[333717130,1722405039265,-20240.58095481,0.00013588,2]
[333717131,1722405039275,-774.45660312,0.00013598,2]
[333717132,1722405039285,-1052.89412195,0.00013598,2]
[333717133,1722405039295,-200.0,0.00013598,2]
[333717134,1722405039307,-2000.0,0.00013598,2]
[333717135,1722405039316,-3275.46484088,0.00013678,2]
[333717160,1722405043696,-4071.13612497,0.00013167,2]
[333717161,1722405043707,-150.0,0.00013375,2]
[333717162,1722405043717,-22984.03191652,0.00013678,2]
[333717163,1722405043727,-26259.4967574,0.00013687,2]
[333717164,1722405043737,-2451.1,0.00013687,2]
[333717165,1722405043747,-52518.9935148,0.00013688,2]
[333717166,1722405043756,-9170.26132959,0.00013688,5]
[333717167,1722405043766,-936.97146555,0.00013688,2]
[333717168,1722405043775,-5000.0,0.00013688,2]
[333717169,1722405043785,-275.249257,0.00013688,2]
[333717170,1722405043795,-151.0,0.00013688,2]
[333717171,1722405043808,-285.97051,0.00013688,2]
[333717172,1722405043818,-285.97051,0.00013688,2]
[333717173,1722405043827,-151.0,0.00013688,2]
[333717174,1722405043840,-157556.980544,0.00013688,2]
[333717175,1722405043850,-2451.1,0.00013696,2]
[333717176,1722405043860,-2451.1,0.00013697,2]
[333717177,1722405043870,-2451.1,0.00013697,2]
[333717178,1722405043882,-2451.1,0.00013697,2]
[333717179,1722405043895,-2451.1,0.00013697,2]
[333717180,1722405043904,-2451.1,0.00013697,2]
[333717181,1722405043913,-2451.1,0.00013697,2]
[333717182,1722405043923,-2451.1,0.00013697,2]
[333717183,1722405043932,-2451.1,0.00013697,2]
[333717184,1722405043942,-2451.1,0.00013697,2]
[333717185,1722405043952,-2451.1,0.00013697,2]
[333717186,1722405043961,-2451.1,0.00013697,2]
[333717187,1722405043971,-2451.1,0.00013697,2]
[333717188,1722405043981,-2451.1,0.00013697,2]
[333717189,1722405043994,-152.552696,0.00013697,2]
[333717190,1722405044004,-151.0,0.00013697,2]
[333717191,1722405044014,-88795.27792579,0.00013698,5]
[333717192,1722405044024,-500.0,0.00013698,2]
[333717193,1722405044034,-234.93257044,0.00013698,2]
[333717194,1722405044045,-200.68894319,0.00013698,2]
[333717195,1722405044057,-464.73023191,0.00013698,2]
[333717196,1722405044068,-500.0,0.00013698,2]
[333717197,1722405044079,-500.0,0.00013698,2]
[333717198,1722405044092,-500.0,0.00013698,2]
[333717199,1722405044103,-500.0,0.00013698,2]
[333717200,1722405044113,-500.0,0.00013698,2]
[333717201,1722405044122,-312.92282407,0.00013698,2]
[333717202,1722405044134,-500.0,0.00013698,2]
[333717203,1722405044146,-500.0,0.00013698,2]
[333717204,1722405044155,-500.0,0.00013698,2]
[333717205,1722405044166,-414.46557572,0.00013698,2]
[333717206,1722405044179,-500.0,0.00013698,2]
[333717207,1722405044188,-500.0,0.00013698,2]
[333717208,1722405044198,-500.0,0.00013698,2]
[333717209,1722405044209,-438.26981577,0.00013698,2]
[333717210,1722405044220,-501.61603736,0.00013698,2]
[333717211,1722405044230,-548.93181022,0.00013698,2]
[333717212,1722405044240,-500.64020787,0.00013698,2]
[333717213,1722405044250,-500.62146157,0.00013698,2]
[333717214,1722405044260,-500.0,0.00013698,2]
[333717215,1722405044270,-550.0795422,0.00013698,2]
[333717216,1722405044280,-500.0,0.00013698,2]
[333717217,1722405044289,-500.0,0.00013698,2]
[333717218,1722405044298,-500.0,0.00013698,2]
[333717219,1722405044308,-563.66675073,0.00013698,2]
[333717220,1722405044318,-500.0,0.00013698,2]
[333717221,1722405044328,-500.0,0.00013698,2]
[333717222,1722405044339,-500.0,0.00013698,2]
[333717223,1722405044349,-500.0,0.00013698,2]
[333717224,1722405044360,-500.0,0.00013698,2]
[333717225,1722405044370,-501.04979845,0.00013698,2]
[333717226,1722405044380,-151.0,0.00013698,2]
[333717227,1722405044391,-500.0,0.00013698,2]
[333717228,1722405044401,-151.409696,0.00013698,2]
[333717229,1722405044411,-501.71518288,0.00013698,2]
[333717230,1722405044421,-500.0,0.00013698,2]
[333717231,1722405044430,-500.0,0.00013698,2]
[333717232,1722405044440,-339.16216401,0.00013698,2]
[333717233,1722405044450,-618.62401968,0.00013698,2]
[333717234,1722405044459,-527.86372041,0.00013698,2]
[333717235,1722405044470,-501.77177849,0.00013698,2]
[333717236,1722405044480,-500.0,0.00013698,2]
[333717237,1722405044491,-500.0,0.00013698,2]
[333717238,1722405044503,-500.0,0.00013698,2]
[333717239,1722405044515,-500.0,0.00013698,2]
[333717240,1722405044524,-500.0,0.00013698,2]
[333717241,1722405044535,-606.55,0.00013698,2]
[333717242,1722405044545,-502.44658191,0.00013698,2]
[333717243,1722405044555,-570.15936475,0.00013698,2]
[333717244,1722405044565,-507.84578256,0.00013698,2]
[333717245,1722405044576,-500.0,0.00013698,2]
[333717246,1722405044586,-504.23774351,0.00013698,2]
[333717247,1722405044595,-503.74066237,0.00013698,2]
[333717248,1722405044605,-503.83900463,0.00013698,2]
[333717249,1722405044614,-500.0,0.00013698,2]
[333717250,1722405044625,-500.0,0.00013698,2]
[333717251,1722405044635,-501.78253295,0.00013698,2]
[333717252,1722405044645,-498.9707336,0.00013698,2]
[333717253,1722405044655,-500.0,0.00013698,2]
[333717254,1722405044665,-662.34,0.00013698,2]
[333717255,1722405044674,-192.93583292,0.00013698,2]
[333717256,1722405044684,-238.26127648,0.00013698,2]
[333717257,1722405044694,-500.0,0.00013698,2]
[333717258,1722405044703,-500.0,0.00013698,2]
[333717259,1722405044713,-500.0,0.00013698,2]
[333717260,1722405044723,-500.0,0.00013698,2]
[333717261,1722405044732,-500.0,0.00013698,2]
[333717262,1722405044742,-500.0,0.00013698,2]
[333717263,1722405044751,-500.0,0.00013698,2]
[333717264,1722405044761,-500.0,0.00013698,2]
[333717265,1722405044771,-1104.14,0.00013698,2]
[333717266,1722405044781,-500.0,0.00013698,2]
[333717267,1722405044791,-500.0,0.00013698,2]
[333717268,1722405044802,-500.0,0.00013698,2]
[333717269,1722405044813,-500.0,0.00013698,2]
[333717270,1722405044824,-500.0,0.00013698,2]
[333717271,1722405044834,-500.0,0.00013698,2]
[333717272,1722405044844,-500.0,0.00013698,2]
[333717273,1722405044854,-500.0,0.00013698,2]
[333717274,1722405044864,-500.0,0.00013698,2]
[333717275,1722405044874,-500.0,0.00013698,2]
[333717276,1722405044885,-500.0,0.00013698,2]
[333717277,1722405044896,-536.16,0.00013698,2]
[333717278,1722405044906,-500.0,0.00013698,2]
[333717279,1722405044916,-285.67854041,0.00013698,2]
[333717280,1722405044925,-500.0,0.00013698,2]
[333717281,1722405044935,-2264.94,0.00013698,2]
[333717282,1722405044945,-600.36,0.00013698,2]
[333717283,1722405044954,-503.51538637,0.00013698,2]
[333717284,1722405044964,-500.0,0.00013698,2]
[333717285,1722405044973,-500.0,0.00013698,2]
[333717286,1722405044983,-548.27177126,0.00013698,2]
[333717287,1722405044993,-500.0,0.00013698,2]
[333717288,1722405045004,-1147.02,0.00013698,2]
[333717289,1722405045014,-456.48242128,0.00013698,2]
[333717290,1722405045024,-500.0,0.00013698,2]
[333717291,1722405045034,-725.23,0.00013698,2]
[333717292,1722405045045,-510.27245639,0.00013698,2]
[333717293,1722405045055,-500.0,0.00013698,2]
[333717294,1722405045065,-500.0,0.00013698,2]